Cogmind - Beta 12 @@@ ROGUE MODE // 2023.04.26 @ 16:52:28 Player: Mr Goldstein Result: Self-destructed Performance ------------- Evolutions (2) 1000 Regions Visited (4) 800 Robots Destroyed (18) 90 Value Destroyed (376) 376 Prototype IDs (6) 120 Alien Tech Used (0) 0 Bonus (415) 415 TOTAL SCORE: 2801 Bonus ------- Pacifist 200 High Alert Combat Kills 15 Entered Garrisons 200 Cogmind --------- Core Integrity 175/550 Matter 5/300 Energy 100/100 System Corruption 2% Temperature Cool (9) Movement Core (50) Location -8/Garrison Parts ------- > --- POWER (1) -------- (None) > --- PROPULSION (4) --- (None) > --- UTILITY (4) ------ Improved Terrain Scan Processor System Shield > --- WEAPON (2) ------- Heavy Hammer > --- INVENTORY (5) ---- Heavy Ion Engine Flight Unit Flight Unit Medium Storage Unit Peak State ------------ > --- POWER ------------ Light Nuclear Core > --- PROPULSION ------- Flight Unit Flight Unit Flight Unit Flight Unit > --- UTILITY ---------- Improved Terrain Scan Processor System Shield System Shield > --- WEAPON ----------- Grenade Launcher Heavy Hammer > --- INVENTORY -------- Heavy Ion Engine Light Treads Medium Storage Unit [Rating: 19] Favorites ----------- Power Light Nuclear Core Engine Light Ion Engine Power Core Light Nuclear Core Propulsion Flight Unit Treads Light Treads Leg Improved Carbon-fiber Leg Flight Unit Flight Unit Utility System Shield Processor Improved Terrain Scan Processor Hackware System Shield Protection Propulsion Shielding Weapon Heavy Hammer Launcher Grenade Launcher Impact Weapon Heavy Hammer Slashing Weapon Mining Claw Build | -11 -10 -9 -8 -8 ------- Run | Jun Mat Mat Mat Gar Slots Evolved 4 | . . 2 2 . Power . | . . . . . Propulsion 2 | . . 1 1 . Utility 2 | . . 1 1 . Weapon . | . . . . . Parts Attached 29 | 2 . 7 12 8 Power 3 | . . 2 1 . Engine 2 | . . 2 . . Core 1 | . . . 1 . Reactor . | . . . . . Propulsion 12 | 2 . . 6 4 Treads 4 | 2 . . 1 1 Leg 2 | . . . 2 . Wheel . | . . . . . Hover . | . . . . . Flight 6 | . . . 3 3 Utility 4 | . . 1 3 . Device . | . . . . . Storage . | . . . . . Processor 1 | . . . 1 . Hackware 2 | . . . 2 . Protection 1 | . . 1 . . Artifact . | . . . . . Weapon 10 | . . 4 2 4 Energy Gun . | . . . . . Energy Cannon . | . . . . . Ballistic Gun . | . . . . . Ballistic Cannon . | . . . . . Launcher 4 | . . . 2 2 Special Weapon . | . . . . . Impact Weapon 5 | . . 3 . 2 Slashing Weapon 1 | . . 1 . . Piercing Weapon . | . . . . . Special Melee Weapon . | . . . . . Unidentified Prototypes 1 | . . 1 . . Parts Lost 9 | . . 1 . 8 Power . | . . . . . Propulsion 6 | . . . . 6 Utility 2 | . . 1 . 1 Weapon 1 | . . . . 1 Highest Loss Streak 7 | . . 1 . 7 To Critical Strikes . | . . . . . Average Slot Usage (%) 47 | . 28 36 45 63 Core 2 | . . . 1 6 Treads 11 | . 28 22 6 1 Leg 1 | . . . 8 . Flight 10 | . . . 13 20 Processor 3 | . . . . 9 Hackware 6 | . . . 4 15 Protection 1 | . . 7 . . Launcher 2 | . . . 6 2 Impact Weapon 4 | . . 4 2 7 Naked Turns . | . . . . . Heaviest Build 11 | . . 4 8 11 Greatest Support 20 | 20 3 3 18 16 Greatest Overweight (x) 1 | . . 1 1 . Average Overweight (x) . | . . . . . Largest Inventory Capacity 5 | 5 5 5 5 5 Average Capacity 5 | 5 5 5 5 5 Most Carried 5 | 1 2 4 5 5 Average Carried 3 | . 1 3 4 4 Final Capacity 5 | 5 5 5 5 5 Final Carried 4 | 1 2 3 4 4 Class Distribution -------------------- 74% | Mutant 15% | Hacker-Mutant 10% | Hacker-Sprinter Dominant Class ---------------- Mutant | -10/Materials Mutant | -9/Materials Mutant | -8/Materials Mutant | -8/Garrison Resources | -11 -10 -9 -8 -8 ----------- Run | Jun Mat Mat Mat Gar Matter Collected 281 | 193 . 42 7 39 Remotely . | . . . . . Salvage Created 410 | . . 108 165 137 Parts 31 | . . 3 12 16 Haulers Intercepted 2 | . . 2 . . Recyclers Shooed . | . . . . . Parts Field Recycled . | . . . . . Retrieved Matter . | . . . . . Parts Self-Destructed . | . . . . . Prevented . | . . . . . Kills | -11 -10 -9 -8 -8 ------- Run | Jun Mat Mat Mat Gar Combat Hostiles Destroyed 15 | . . . 7 8 Melee 1 | . . . . 1 AOE 14 | . . . 7 7 Classes Destroyed 6 | . . 1 4 1 Hauler 2 | . . 2 . . Operator 1 | . . . 1 . Swarmer 10 | . . . 4 6 Grunt 2 | . . . 2 . Brawler 2 | . . . 1 1 Programmer 1 | . . . . 1 Best Kill Streak 8 | . . 1 8 5 Combat Bots Only 7 | . . . 7 5 Max Kills in Single Turn 3 | . . 1 3 3 Gunslinging . | . . . . . Exploded 3 | . . . 3 3 Melee 1 | . . . . 1 Uniques/NPCs Destroyed . | . . . . . Combat | -11 -10 -9 -8 -8 -------- Run | Jun Mat Mat Mat Gar Damage Taken 1213 | . 102 319 160 632 Core 538 | . 34 129 18 357 Absorbed by Shields . | . . . . . Redirected to Shielding 50 | . . 50 . . Core Remaining (%) 84 | 100 86 67 . . Volleys Fired 13 | . . . 9 4 Largest 1 | . . . 1 1 Hottest 30 | . . . 30 30 Shots Fired 13 | . . . 9 4 Gun . | . . . . . Cannon . | . . . . . Launcher 13 | . . . 9 4 Special . | . . . . . Kinetic . | . . . . . Thermal . | . . . . . Explosive 13 | . . . 9 4 Electromagnetic . | . . . . . Robot Hit Streak 2 | . . . 2 2 Robot Miss Streak 1 | . . . 1 . Penetration Max . | . . . . . Secondary Targets . | . . . . . Shots Hit Robots 14 | . . 6 3 5 Core Hits 21 | . . . 10 11 Critical Kills . | . . . . . Critical Parts Destroyed 1 | . . 1 . . Critical Strikes 1 | . . 1 . . Smash 1 | . . 1 . . Melee Attacks 28 | . . 7 . 21 Impact 28 | . . 7 . 21 Slashing . | . . . . . Piercing . | . . . . . Sneak Attacks 3 | . . 2 . 1 Combat Hostiles 1 | . . . . 1 Follow-up Attacks . | . . . . . Damage Inflicted 1288 | . 7 266 367 648 Guns . | . . . . . Cannons . | . . . . . Explosions 786 | . . . 367 419 Melee 495 | . . 266 . 229 Ramming 7 | . 7 . . . Kinetic . | . . . . . Thermal . | . . . . . Explosive 786 | . . . 367 419 Electromagnetic . | . . . . . Impact 495 | . . 266 . 229 Slashing . | . . . . . Piercing . | . . . . . Highest Corruption 2 | . . . . 2 Average Corruption 1 | . . . . 1 Corruption Purged . | . . . . . Corruption Blocked . | . . . . . Effects 1 | . . . . 1 Matter Fused 1 | . . . . 1 Overload Shots . | . . . . . Overflow Damage 173 | . . 90 28 55 Projectiles . | . . . . . Explosions 63 | . . . 28 35 Melee 110 | . . 90 . 20 Knockbacks 3 | . . . . 3 Impact 2 | . . . . 2 Kinetic . | . . . . . Secondary 1 | . . . . 1 Self-Inflicted Damage 68 | . 3 . 24 41 Shots 5 | . . . 2 3 Rammed 2 | . 1 1 . . Targets Rammed 2 | . 1 1 . . Kicked . | . . . . . Crushed . | . . . . . Highest Temperature 27 | . . . . 27 Average Temperature 9 | . . . . 9 Received Heat Transfer 438 | . 54 141 63 180 Siege Activations . | . . . . . Robots Corrupted . | . . . . . Combat Hostiles . | . . . . . Parts Fried 1 | . . 1 . . Impact Corruptions 3 | . . 2 . 1 Robots Melted . | . . . . . Combat Hostiles . | . . . . . Parts Melted . | . . . . . Heat Transferred . | . . . . . Parts Sabotaged . | . . . . . Parts Stolen . | . . . . . Parts Stripped . | . . . . . Power Chain Reactions . | . . . . . Missiles Intercepted . | . . . . . Alert | -11 -10 -9 -8 -8 ------- Run | Jun Mat Mat Mat Gar Peak Influence 497 | . 95 171 344 497 Initial 223 | . . 39 67 223 Average 196 | . 55 85 234 316 Maximum Alert Level 2 | . . . 1 2 Low Security (%) 48 | 100 100 100 33 . Level 1 46 | . . . 66 86 Level 2 5 | . . . . 13 Level 3 . | . . . . . Level 4 . | . . . . . Level 5 . | . . . . . High Security . | . . . . . Max Security . | . . . . . Squads Dispatched 3 | . 1 1 1 . Investigation 1 | . . 1 . . Extermination . | . . . . . Reinforcement 2 | . 1 . 1 . Assault . | . . . . . Garrison . | . . . . . Intercept . | . . . . . Searches Triggered . | . . . . . Construction Impeded . | . . . . . Haulers Reinforced . | . . . . . Active Scanning Responses . | . . . . . Cargo Convoy Interrupts . | . . . . . Stealth | -11 -10 -9 -8 -8 --------- Run | Jun Mat Mat Mat Gar Distress Signals 3 | . 1 1 1 . Communications Jammed . | . . . . . Distress Signals . | . . . . . Times Spotted 52 | . 6 13 14 19 Peak Tracking Total 9 | . 6 9 6 9 Tactical Retreats 4 | . 1 1 . 2 Traps | -11 -10 -9 -8 -8 ------- Run | Jun Mat Mat Mat Gar Traps Triggered 2 | . . 1 . 1 Indirectly . | . . . . . Trap Hack Attempts . | . . . . . Triggered . | . . . . . Disarmed . | . . . . . Reprogrammed . | . . . . . Reused . | . . . . . Traps Extracted . | . . . . . Installed . | . . . . . Triggered . | . . . . . Machines | -11 -10 -9 -8 -8 ---------- Run | Jun Mat Mat Mat Gar Machines Disabled 3 | . . . 3 . Max in Single Turn 1 | . . . 1 . Machines Repaired . | . . . . . Machines Sabotaged . | . . . . . Overloaded Fab Kills . | . . . . . Hacking | -11 -10 -9 -8 -8 --------- Run | Jun Mat Mat Mat Gar Machines Accessed 7 | . 2 2 2 1 Terminals 6 | . 2 2 1 1 Fabricators . | . . . . . Repair Stations . | . . . . . Recycling Units . | . . . . . Scanalyzers . | . . . . . Garrison Access 1 | . . . 1 . Total Hacks 20 | . 7 7 4 2 Successful 12 | . 5 4 2 1 Failed 8 | . 2 3 2 1 Catastrophic 1 | . . . . 1 Database Lockouts . | . . . . . Manual 13 | . 7 4 2 . Terminals 18 | . 7 7 2 2 Fabricators . | . . . . . Repair Stations . | . . . . . Recycling Units . | . . . . . Scanalyzers . | . . . . . Garrison Access 2 | . . . 2 . Terminal Hacks 6 | . 3 2 . 1 Robot Analysis 1 | . . 1 . . Prototype ID Bank 4 | . 3 1 . . Emergency Access Points 1 | . . . . 1 Fabricator Hacks . | . . . . . Repair Station Hacks . | . . . . . Recycling Unit Hacks . | . . . . . Scanalyzer . | . . . . . Garrison Access Hacks 1 | . . . 1 . Unlock Access 1 | . . . 1 . Unauthorized Hacks 5 | . 2 2 1 . Terminals 5 | . 2 2 1 . Botnet 5 | . 2 2 1 . Fabricators . | . . . . . Repair Stations . | . . . . . Recycling Units . | . . . . . Scanalyzers . | . . . . . Garrison Access . | . . . . . Data Cores Recovered 1 | . . . 1 . Used . | . . . . . Hacking Detections 6 | . 2 2 1 1 Full Trace Events 2 | . 1 1 . . Feedback Events . | . . . . . Feedback Blocked . | . . . . . Robot Schematics Acquired . | . . . . . Robots Built . | . . . . . Authchips . | . . . . . Time . | . . . . . Total Robot Build Rating . | . . . . . Part Schematics Acquired . | . . . . . Parts Built . | . . . . . Authchips . | . . . . . Time . | . . . . . Total Part Build Rating . | . . . . . Parts Repaired . | . . . . . Time . | . . . . . Parts Recycled . | . . . . . Recycled Matter . | . . . . . Retrieved Matter . | . . . . . Retrieved Components . | . . . . . Parts Scanalyzed . | . . . . . Part Schematics Acquired . | . . . . . Parts Damaged . | . . . . . Bothacking | -11 -10 -9 -8 -8 ------------ Run | Jun Mat Mat Mat Gar Used RIF Installer . | . . . . . Robots Hacked . | . . . . . Non-combat . | . . . . . Combat . | . . . . . Robot Hacks Applied . | . . . . . Relay Couplers Released . | . . . . . Fabnet Peak Effective % . | . . . . . Robots Rewired . | . . . . . Allies Hacked . | . . . . . Hacks Repelled . | . . . . . Allies | -11 -10 -9 -8 -8 -------- Run | Jun Mat Mat Mat Gar Total Allies . | . . . . . Largest Group . | . . . . . Highest-Rated Group . | . . . . . Highest-Rated Ally . | . . . . . Total Orders . | . . . . . Ally Attacks . | . . . . . Total Damage . | . . . . . Kills . | . . . . . Allies Corrupted . | . . . . . Allies Melted . | . . . . . Intel | -11 -10 -9 -8 -8 ------- Run | Jun Mat Mat Mat Gar Robot Analysis Total 1 | . . 1 . . Derelict Logs Recovered . | . . . . . Drone Launches . | . . . . . Drone Recoveries . | . . . . . Exploration | -11 -10 -9 -8 -8 ------------- Run | Jun Mat Mat Mat Gar Turns Passed 606 | 19 87 145 131 224 Spaces Moved 972 | 25 169 202 228 348 Core 539 | 23 169 202 64 81 Treads 2 | 2 . . . . Legs 1 | . . . 1 . Wheels . | . . . . . Hover . | . . . . . Flight 430 | . . . 163 267 Fastest Speed 31 | 50 50 50 34 31 Average Speed 43 | 58 50 54 40 36 Slowest Speed 160 | 160 50 100 120 50 Overloaded Moves . | . . . . . Propulsion Burnouts . | . . . . . Robots Hopped 5 | . . . 5 . Cave-ins Triggered . | . . . . . Exploration Rate (%) 27 | 3 35 31 16 51 Regions Visited 4 Branch Regions . Pre-discovered Areas . | . . . . . Known Exits Taken 1 | . . . 1 . Unknown Exits Taken 3 | 1 1 1 . . Scrap Searched . | . . . . . Spaces Dug 37 | . . . 22 15 Terrain Destroyed 71 | . . . 48 23 Melee 6 | . . . . 6 Projectile . | . . . . . AOE 65 | . . . 48 17 Terrain Rammed . | . . . . . Walls Destroyed . | . . . . . Machines Disabled . | . . . . . Actions | -11 -10 -9 -8 -8 --------- Run | Jun Mat Mat Mat Gar Total 1078 | 27 170 226 251 404 Wait 1 | . . . 1 . Move 958 | 24 168 201 217 348 Hop 5 | . . . 5 . Pick Up 8 | 1 1 4 1 1 Fast Attach 16 | 2 . 3 8 3 Attach 11 | . . 4 3 4 Detach 6 | . . 2 2 2 Swap 2 | . . . 1 1 Drop 10 | . . 4 4 2 Fire 13 | . . . 9 4 Melee 28 | . . 7 . 21 Ram 2 | . 1 1 . . Kick . | . . . . . Crush . | . . . . . Escape Stasis 18 | . . . . 18 Rewire . | . . . . . Trap . | . . . . . Miscellaneous . | . . . . . Route ------- -11/Junkyard -10/Materials -9/Materials -8/Materials -8/Garrison (discovered 1 exit: [*Mat]) History --------- Turn | Location | Event 11 | -11/Junkyard | Discovered new exit (range 15) 20 | -11/Junkyard | Entered Materials 76 | -10/Materials | Discovered new exit (range 12) 107 | -10/Materials | Entered another Materials area 107 | -9/Materials | Evolved 2 slots: Propulsion x1, Utility x1 242 | -9/Materials | Discovered new exit (range 5) 252 | -9/Materials | Entered another Materials area 252 | -8/Materials | Evolved 2 slots: Propulsion x1, Utility x1 323 | -8/Materials | Destroyed 7 combat bots 347 | -8/Materials | Build established: Mutant 383 | -8/Materials | Identified exit to Garrison 383 | -8/Materials | Entered Garrison 446 | -8/Garrison | Triggered checkpoint 514 | -8/Garrison | Triggered checkpoint 565 | -8/Garrison | Lost 7 parts (5n1u1w) 565 | -8/Garrison | Discovered new exit (range 3) 578 | -8/Garrison | Triggered checkpoint 600 | -8/Garrison | Core integrity fell below 50% 607 | -8/Garrison | Self-destructed Last Messages --------------- 00534_ Critical hit (Burn: +37). 00534_ Grenade Launcher destroyed. 00536_ Dropped Lgt. Nuclear Core. 00536_ Dropped Hvy. Hammer. 00538_ Critical hit (Burn: +37). 00538_ Acquired Hvy. Hammer. 00540_ Critical hit (Burn: +37). 00565_ EXIT=FOUND 00576_ Slug penetrates Reinforced Barrier. 00579_ Penetrated by Slug. 00579_ Lgt. Treads destroyed. 00582_ Slug penetrates Reinforced Barrier. 00590_ Sneak attack on P-60 Hacker. 00590_ P-60 Hacker destroyed. 00599_ Slug penetrates Wall. 00601_ Destroyed Remote Datajack. 00601_ P-60 Hacker system corrupted by crushing effect. 00601_ P-60 Hacker knocked back. 00603_ System corrupted: Matter fused (-8). 00604_ H-55 Commando knocked back. Map ----- +----------------------------------------------------+ | | | | | | | | | | | | | | | | | | | | | ????????????????????????????????????? | | ????????????????????????????????????? | | ????????????????????????????????????? | | ????????????????????????????????????? | | ????????????????????????????????????? | | ????????????????????????????????????? | | ????????????????????????????????????? | | ????????????????????????????????????? | | ????????????????????#######?????????? | | ????????????????????#"""""#?????????? | | ###################### ##?????????? | | + #?????????? | | + g #?????????? | | ###"######## ### #####h#?????????? | | ### ##?????# #?# #####g####??????? | | " #?????# #?##"###!!#@#!!#??????? | | " #?????# #### #?# !/p/!!#??????? | | #?????# " #?##+#g#p##??????? | | " ####??# ######????# #%!#??????? | | "" #??# #?????????+ +!!#??????? | | " ## #### #?????????######??????? | | ## ## #?????????????????????? | | ## + < #?????????????????????? | | ## ## #?????????????????????? | | ####### #### #?????????????????????? | | ??????# #??# #?????????????????????? | | ??????# #??# #?????????????????????? | | ??????# #??# #?????????????????????? | | ?????? #??# #?????????????????????? | | ??????# #??# #?????????????????????? | | ??????? ???# #?????????????????????? | | ??????? ???# #?????????????????????? | | ####???+???# #?????????????????????? | | ?? +?????????????????????? | | ?? #?????????????????????? | | ######?????####?????????????????????? | | ????????????????????????????????????? | | ????????????????????????????????????? | | ????????????????????????????????????? | | ????????????????????????????????????? | +----------------------------------------------------+ Best States ------------- Heat Dissipation 31 Energy Generation 14 Energy Capacity 280 Matter Stores 290 Matter Capacity 300 Sight Range 16 Terrain Scan Density 110 Propulsion Shielding 33 Evasion (%) 63 Recoil Reduction 1 Defensive Hacking 20 Item Schematics ----------------- None Robot Schematics ------------------ None Fabricated ------------ Nothing Alien Tech Used ----------------- None Achievements -------------- None Challenges ------------ None Game ------ Seed PointBladeStreamer Manual? 0 Play Time 00:14:47 Cumulative 147.4 hours Start 2023.04.26 @ 16:40:08 End 2023.04.26 @ 16:52:28 Sessions 1 Manual Loads 0 Difficulty Rogue Special Mode None Game No. 428 Rogue 428 Adventurer 0 Explorer 0 Win Type - Total 7 Types 6/0/0/1/0/0/0/0/0 Lore% 65 Gallery% 70 Achievement% 61 Wizard Run 0 Options --------- ASCII 0 Keyboard 0 Movement Numpad Keybinds 0 Fullscreen 1 Font 16/SmallcapsGlow Map View 75x55 Tactical HUD 1 Map Filters NONE Filters NONE Steam 1 RUN: 5a050b0a-5313-46d1-b0ce-4e62252a4fb4